[Event "Titled Tuesday Blitz October 25 Early 2022"]
[White "Zemlyanskii, Ivan"]
[Black "Arabidze, Meri"]
[WhiteFideId "24249971"]
[BlackFideId "13604040"]
[WhiteElo "2107"]
[BlackElo "2403"]
[Result "0-1"]
[Round "11"]
[TimeControl "180+1"]
[Date "2022.10.25"]
[WhiteClock "0:00:01"]
[BlackClock "0:00:11"]

1. d4 {[%clk 0:03:00]}  Nf6 {[%clk 0:02:58]} 2. c4 {[%clk 0:03:01]}  e6 {[%clk 0:02:58]} 3. Nf3 {[%clk 0:03:02]}  Bb4+ {[%clk 0:02:58]} 4. Bd2 {[%clk 0:03:02]}  Qe7 {[%clk 0:02:57]} 5. g3 {[%clk 0:03:01]}  Nc6 {[%clk 0:02:56]} 6. b3 {[%clk 0:03:02]}  Bxd2+ {[%clk 0:02:51]} 7. Qxd2 {[%clk 0:03:03]}  d6 {[%clk 0:02:52]} 8. Qb2 {[%clk 0:03:00]}  e5 {[%clk 0:02:51]} 9. dxe5 {[%clk 0:02:26]}  dxe5 {[%clk 0:02:52]} 10. Bg2 {[%clk 0:02:26]}  O-O {[%clk 0:02:41]} 11. O-O {[%clk 0:02:24]}  Rd8 {[%clk 0:02:39]} 12. Nc3 {[%clk 0:02:01]}  e4 {[%clk 0:02:39]} 13. Ng5 {[%clk 0:01:49]}  Bf5 {[%clk 0:02:35]} 14. Qb1 {[%clk 0:01:26]}  Re8 {[%clk 0:02:24]} 15. Nh3 {[%clk 0:00:49]}  Qe5 {[%clk 0:02:24]} 16. Qb2 {[%clk 0:00:45]}  e3 {[%clk 0:02:08]} 17. f4 {[%clk 0:00:41]}  Qc5 {[%clk 0:02:00]} 18. Ng5 {[%clk 0:00:40]}  h6 {[%clk 0:01:56]} 19. Nf3 {[%clk 0:00:39]}  Rad8 {[%clk 0:01:50]} 20. Rad1 {[%clk 0:00:39]}  Ng4 {[%clk 0:01:08]} 21. Rd5 {[%clk 0:00:35]}  Rxd5 {[%clk 0:01:04]} 22. Nxd5 {[%clk 0:00:36]}  Nb4 {[%clk 0:00:57]} 23. Nxb4 {[%clk 0:00:31]}  Qxb4 {[%clk 0:00:58]} 24. Nd4 {[%clk 0:00:32]}  Bc8 {[%clk 0:00:45]} 25. a3 {[%clk 0:00:33]}  Qc5 {[%clk 0:00:42]} 26. Qc3 {[%clk 0:00:32]}  Qh5 {[%clk 0:00:40]} 27. Nf3 {[%clk 0:00:25]}  b6 {[%clk 0:00:35]} 28. h3 {[%clk 0:00:22]}  Nf2 {[%clk 0:00:35]} 29. h4 {[%clk 0:00:17]}  Qg4 {[%clk 0:00:33]} 30. Kh2 {[%clk 0:00:16]}  Ne4 {[%clk 0:00:34]} 31. Qe1 {[%clk 0:00:15]}  Nf2 {[%clk 0:00:28]} 32. Ne5 {[%clk 0:00:15]}  Qh5 {[%clk 0:00:25]} 33. Qc3 {[%clk 0:00:14]}  f6 {[%clk 0:00:18]} 34. Bf3 {[%clk 0:00:10]}  Qf5 {[%clk 0:00:12]} 35. Qxe3 {[%clk 0:00:02]}  Qh3+ {[%clk 0:00:12]} 36. Kg1 {[%clk 0:00:03]}  Qxg3+ {[%clk 0:00:12]} 37. Bg2 {[%clk 0:00:04]}  Qxe3 {[%clk 0:00:13]} 38. Bd5+ {[%clk 0:00:03]}  Be6 {[%clk 0:00:12]} 39. Rxf2 {[%clk 0:00:01]}  Bxd5 {[%clk 0:00:11]} 0-1


[Site "https://www.chess.com"]

[Event "Titled Tuesday Blitz October 25 Early 2022"]
[White "Zhigalko, Sergei"]
[Black "Mirzoev, Azer"]
[WhiteFideId "13502956"]
[BlackFideId "13400304"]
[WhiteElo "2662"]
[BlackElo "2525"]
[Result "1-0"]
[Round "11"]
[TimeControl "180+1"]
[Date "2022.10.25"]
[WhiteClock "0:00:03"]
[BlackClock "0:00:07"]

1. e4 {[%clk 0:03:00]}  Nf6 {[%clk 0:02:58]} 2. e5 {[%clk 0:03:01]}  Nd5 {[%clk 0:02:59]} 3. Nf3 {[%clk 0:03:01]}  d6 {[%clk 0:02:58]} 4. d4 {[%clk 0:03:01]}  dxe5 {[%clk 0:02:59]} 5. Nxe5 {[%clk 0:03:01]}  c6 {[%clk 0:02:59]} 6. Be2 {[%clk 0:03:01]}  Nd7 {[%clk 0:02:59]} 7. Nf3 {[%clk 0:03:00]}  N7f6 {[%clk 0:02:59]} 8. O-O {[%clk 0:02:59]}  Bg4 {[%clk 0:02:58]} 9. Ne5 {[%clk 0:02:54]}  Bxe2 {[%clk 0:02:57]} 10. Qxe2 {[%clk 0:02:55]}  e6 {[%clk 0:02:57]} 11. c4 {[%clk 0:02:54]}  Nb6 {[%clk 0:02:57]} 12. Rd1 {[%clk 0:02:55]}  Be7 {[%clk 0:02:57]} 13. Nc3 {[%clk 0:02:54]}  O-O {[%clk 0:02:57]} 14. Bf4 {[%clk 0:02:55]}  Nbd7 {[%clk 0:02:44]} 15. Rd3 {[%clk 0:02:53]}  Re8 {[%clk 0:02:40]} 16. Rad1 {[%clk 0:02:45]}  Nf8 {[%clk 0:02:38]} 17. h4 {[%clk 0:02:45]}  Qa5 {[%clk 0:02:14]} 18. h5 {[%clk 0:02:35]}  Rad8 {[%clk 0:02:12]} 19. Rg3 {[%clk 0:02:32]}  c5 {[%clk 0:02:03]} 20. Ng4 {[%clk 0:01:11]}  Nxg4 {[%clk 0:01:55]} 21. Qxg4 {[%clk 0:01:11]}  g6 {[%clk 0:01:55]} 22. d5 {[%clk 0:01:11]}  Bf6 {[%clk 0:01:34]} 23. Bg5 {[%clk 0:01:05]}  Bxg5 {[%clk 0:01:21]} 24. Qxg5 {[%clk 0:01:05]}  Qc7 {[%clk 0:01:20]} 25. Ne4 {[%clk 0:01:02]}  Nd7 {[%clk 0:01:03]} 26. d6 {[%clk 0:00:55]}  Qb6 {[%clk 0:00:51]} 27. b3 {[%clk 0:00:35]}  Qc6 {[%clk 0:00:42]} 28. Re1 {[%clk 0:00:29]}  e5 {[%clk 0:00:29]} 29. Qh6 {[%clk 0:00:16]}  Re6 {[%clk 0:00:06]} 30. Ng5 {[%clk 0:00:15]}  Nf8 {[%clk 0:00:05]} 31. Nxe6 {[%clk 0:00:13]}  Nxe6 {[%clk 0:00:06]} 32. hxg6 {[%clk 0:00:12]}  hxg6 {[%clk 0:00:06]} 33. Rxe5 {[%clk 0:00:12]}  Qxd6 {[%clk 0:00:06]} 34. Rd5 {[%clk 0:00:10]}  Qe7 {[%clk 0:00:06]} 35. Rh3 {[%clk 0:00:08]}  Qf6 {[%clk 0:00:06]} 36. Qh7+ {[%clk 0:00:07]}  Kf8 {[%clk 0:00:06]} 37. Qh8+ {[%clk 0:00:08]}  Ke7 {[%clk 0:00:06]} 38. Qxf6+ {[%clk 0:00:04]}  Kxf6 {[%clk 0:00:07]} 39. Rxd8 {[%clk 0:00:04]}  Nxd8 {[%clk 0:00:07]} 40. Rh8 {[%clk 0:00:03]} 1-0